Cogmind - Beta 11 X6 @@@ ROGUE MODE // 2021.08.11 @ 12:29:36 Player: Olga Result: Destroyed by S-27 Virus with Autogun Performance ------------- Evolutions (5) 2500 Regions Visited (13) 2600 Robots Destroyed (82) 410 Value Destroyed (3612) 3612 Prototype IDs (4) 80 Alien Tech Used (0) 0 Bonus (436) 436 TOTAL SCORE: 9638 Bonus ------- High Alert Combat Kills 436 Cogmind --------- Core Integrity 0/1000 Matter 7/300 Energy 99/100 System Corruption 8% Temperature Cool (0) Movement Core (50) Location -5/Factory Parts ------- > --- POWER (2) -------- (None) > --- PROPULSION (4) --- (None) > --- UTILITY (9) ------ Advanced Visual Processing Unit > --- WEAPON (2) ------- (None) > --- INVENTORY (5) ---- Micro Fission Core Enhanced Autogun Gauss Rifle Gauss Cannon Precision Grenade Launcher Peak State ------------ > --- POWER ------------ Micro Nuclear Core > --- PROPULSION ------- Aluminum Leg Aluminum Leg Carbon-fiber Leg Carbon-fiber Leg > --- UTILITY ---------- Large Storage Unit Signal Interpreter Core Analyzer Maneuvering Thrusters Hacking Suite System Shield > --- WEAPON ----------- Enhanced Autogun Gauss Rifle > --- INVENTORY -------- Micro Nuclear Core Micro Nuclear Core Carbon-fiber Leg Titanium Leg Improved Carbon-fiber Leg Large Storage Unit High-capacity Battery High-capacity Matter Pod Gauss Rifle Gauss Rifle Gauss Rifle Gauss Cannon Gauss Cannon Gauss Cannon Precision Grenade Launcher [Rating: 40] Favorites ----------- Power Improved Ion Engine Engine Improved Ion Engine Power Core Light Nuclear Core Propulsion Aluminum Leg Leg Aluminum Leg Wheel Wheel Utility Large Storage Unit Device Maneuvering Thrusters Storage Large Storage Unit Processor Signal Interpreter Hackware System Shield Protection Core Shielding Weapon Gauss Rifle Energy Gun Particle Gun Ballistic Gun Gauss Rifle Ballistic Cannon Mass Driver Launcher Missile Launcher Build | -11 -10 -10 -9 -9 -9 -8 -8 -7 -7 -7 -5 -5 -5 ------- Run | Scr Mat Min Mat Min Exi Min Mat Fac Sto Rec Fac Was Fac Slots Evolved 10 | . . . 2 . . . 2 2 . . 4 . . Power 1 | . . . . . . . . . . . 1 . . Propulsion 2 | . . . . . . . 2 . . . . . . Utility 7 | . . . 2 . . . . 2 . . 3 . . Weapon . | . . . . . . . . . . . . . . Parts Attached 108 | . 18 2 3 6 . . 24 33 13 3 6 . . Power 9 | . 2 . 1 . . . 3 1 1 1 . . . Engine 4 | . . . 1 . . . 3 . . . . . . Core 5 | . 2 . . . . . . 1 1 1 . . . Reactor . | . . . . . . . . . . . . . . Propulsion 41 | . 5 1 . 2 . . 13 11 9 . . . . Treads . | . . . . . . . . . . . . . . Leg 27 | . 1 . . . . . 6 11 9 . . . . Wheel 14 | . 4 1 . 2 . . 7 . . . . . . Hover . | . . . . . . . . . . . . . . Flight . | . . . . . . . . . . . . . . Utility 24 | . 4 . . 2 . . 3 11 1 1 2 . . Device 8 | . 1 . . 1 . . 1 2 1 . 2 . . Storage 1 | . 1 . . . . . . . . . . . . Processor 5 | . 1 . . 1 . . . 2 . 1 . . . Hackware 2 | . . . . . . . . 2 . . . . . Protection 8 | . 1 . . . . . 2 5 . . . . . Artifact . | . . . . . . . . . . . . . . Weapon 34 | . 7 1 2 2 . . 5 10 2 1 4 . . Energy Gun 2 | . 2 . . . . . . . . . . . . Energy Cannon . | . . . . . . . . . . . . . . Ballistic Gun 22 | . 5 . 2 1 . . 4 7 2 1 . . . Ballistic Cannon 3 | . . . . . . . . . . . 3 . . Launcher 7 | . . 1 . 1 . . 1 3 . . 1 . . Special Weapon . | . . . . . . . . . . . . . . Impact Weapon . | . . . . . . . . . . . . . . Slashing Weapon . | . . . . . . . . . . . . . . Piercing Weapon . | . . . . . . . . . . . . . . Special Melee Weapon . | . . . . . . . . . . . . . . Unidentified Prototypes 4 | . . . 1 1 . . . 2 . . . . . Parts Lost 47 | . 4 1 2 . . . 13 16 6 . 5 . . Power 5 | . 1 . 1 . . . 1 1 1 . . . . Propulsion 19 | . . 1 1 . . . 6 5 3 . 3 . . Utility 15 | . 1 . . . . . 2 10 1 . 1 . . Weapon 8 | . 2 . . . . . 4 . 1 . 1 . . Highest Loss Streak 7 | . 3 1 1 . . . 7 6 6 . 2 . . Average Slot Usage (%) 85 | . 96 100 76 87 100 100 93 95 60 58 29 5 5 Engine 5 | . 2 . 6 11 11 11 7 5 . . . . . Core 4 | . 10 14 4 . . . . 1 5 7 3 . . Leg 14 | . 12 . . . . . 15 29 26 23 7 . . Wheel 10 | . 15 28 21 22 22 22 16 . . . . . . Device 5 | . 7 . . 5 11 11 8 4 3 . 4 . . Storage 9 | . 14 14 11 11 11 11 9 7 7 7 3 . . Processor 5 | . 2 . . 5 11 11 9 8 1 5 5 5 5 Hackware 2 | . . . . . . . . 7 1 . . . . Protection 7 | . 2 14 11 11 11 11 8 12 . . . . . Energy Gun 2 | . 13 . . . . . . . . . . . . Ballistic Gun 14 | . 14 20 22 20 22 22 15 13 12 15 1 . . Naked Turns . | . . . . . . . . . . . . . . Heaviest Build 44 | 11 32 35 34 37 35 35 38 43 35 34 44 . . Greatest Support 60 | 20 32 20 20 20 20 20 46 53 60 43 43 3 3 Greatest Overweight (x) 6 | . 1 3 3 1 1 1 1 1 6 . 3 . . Average Overweight (x) . | . . 1 1 1 1 1 . . . . . . . Largest Inventory Capacity 15 | . 15 15 15 15 15 15 15 15 15 15 15 5 5 Average Capacity 13 | . 11 15 15 15 15 15 15 15 15 15 11 5 5 Most Carried 15 | . 15 15 15 15 15 15 15 15 15 12 14 5 5 Average Carried 13 | . 10 14 14 14 14 15 14 14 14 11 9 5 5 Final Capacity 15 | 8 15 15 15 15 15 15 15 15 15 15 5 5 5 Final Carried 15 | 6 15 15 15 14 15 15 13 15 13 11 5 5 5 Class Distribution -------------------- 61% | Mutant 30% | Scavenger-Mutant 7% | Hacker-Mutant Dominant Class ---------------- Mutant | -10/Materials Mutant | -10/Mines Mutant | -9/Materials Mutant | -9/Mines Mutant | -9/Exiles Mutant | -8/Mines Mutant | -8/Materials Scavenger-Mutant | -7/Factory Scavenger-Mutant | -7/Storage Mutant | -7/Recycling Mutant | -5/Factory Mutant | -5/Waste Mutant | -5/Factory Resources | -11 -10 -10 -9 -9 -9 -8 -8 -7 -7 -7 -5 -5 -5 ----------- Run | Scr Mat Min Mat Min Exi Min Mat Fac Sto Rec Fac Was Fac Matter Collected 2129 | 200 292 82 104 36 40 40 451 756 44 11 73 . . Remotely . | . . . . . . . . . . . . . . Salvage Created 3221 | . 592 27 210 84 . . 724 1129 44 11 400 . . Parts 174 | . 31 . 15 8 . . 38 56 3 2 21 . . Haulers Intercepted 2 | . 1 . . . . . . . 1 . . . . Recyclers Shooed 1 | . . . . . . . . 1 . . . . . Parts Field Recycled . | . . . . . . . . . . . . . . Retrieved Matter . | . . . . . . . . . . . . . . Parts Self-Destructed . | . . . . . . . . . . . . . . Prevented . | . . . . . . . . . . . . . . Kills | -11 -10 -10 -9 -9 -9 -8 -8 -7 -7 -7 -5 -5 -5 ------- Run | Scr Mat Min Mat Min Exi Min Mat Fac Sto Rec Fac Was Fac Combat Hostiles Destroyed 71 | . 13 2 4 2 . . 14 23 . 1 12 . . Guns 50 | . 13 1 4 . . . 14 17 . 1 . . . Cannons 2 | . . . . . . . . . . . 2 . . AOE 19 | . . 1 . 2 . . . 6 . . 10 . . Classes Destroyed 12 | . 2 1 1 2 . . 1 2 . 1 2 . . Worker 5 | . . . . 1 . . . 1 . . 3 . . Builder 4 | . . . . . . . . . . . 4 . . Tunneler 1 | . . . . . . . . 1 . . . . . Hauler 2 | . 1 . . . . . . . 1 . . . . Drone 1 | . . . . . . . . . . 1 . . . Swarmer 4 | . . . . . . . . . . . 4 . . Grunt 46 | . 13 1 2 1 . . 8 16 . . 5 . . Brawler 1 | . . . . 1 . . . . . . . . . Sentry 9 | . . . 2 . . . 4 2 . . 1 . . Hunter 5 | . . . . . . . 2 3 . . . . . Programmer 4 | . . . . . . . . 2 . . 2 . . Assembled 1 | . . 1 . . . . . . . . . . . Best Kill Streak 7 | . 2 1 2 3 . . 5 5 1 1 7 . . Combat Bots Only 5 | . 2 1 2 2 . . 5 4 . 1 5 . . Max Kills in Single Turn 7 | . 1 1 1 3 . . 1 2 1 1 7 . . Gunslinging . | . . . . . . . . . . . . . . Exploded 5 | . . 1 . 2 . . . 2 . . 5 . . Melee . | . . . . . . . . . . . . . . Uniques/NPCs Destroyed . | . . . . . . . . . . . . . . Combat | -11 -10 -10 -9 -9 -9 -8 -8 -7 -7 -7 -5 -5 -5 -------- Run | Scr Mat Min Mat Min Exi Min Mat Fac Sto Rec Fac Was Fac Damage Taken 6560 | . 727 225 145 . . 5 1551 1960 542 . 1209 . 196 Core 1788 | . 139 18 9 . . . 256 245 120 . 805 . 196 Absorbed by Shields . | . . . . . . . . . . . . . . Core Remaining (%) 66 | 100 . 37 . . . 97 53 . . 47 . . . Volleys Fired 221 | . 63 9 10 1 . . 49 69 11 2 7 . . Largest 2 | . 2 2 2 2 . . 2 2 2 2 2 . . Hottest 105 | . 105 59 46 59 . . 51 64 56 56 105 . . Shots Fired 418 | . 114 11 20 2 . . 96 138 22 4 11 . . Gun 400 | . 114 9 20 1 . . 96 132 22 4 2 . . Cannon 9 | . . . . . . . . . . . 9 . . Launcher 9 | . . 2 . 1 . . . 6 . . . . . Special . | . . . . . . . . . . . . . . Kinetic 375 | . 80 9 20 1 . . 96 132 22 4 11 . . Thermal 30 | . 30 . . . . . . . . . . . . Explosive 9 | . . 2 . 1 . . . 6 . . . . . Electromagnetic 4 | . 4 . . . . . . . . . . . . Robot Hit Streak 22 | . 6 2 8 2 . . 22 10 4 1 5 . . Robot Miss Streak 4 | . 3 2 2 . . . 2 4 2 4 2 . . Penetration Max 1 | . . . . . . . 1 1 1 . . . . Secondary Targets 3 | . 1 . . . . . . 2 . . . . . Max Gunslinging Chain 1 | . 1 . . . . . . 1 . . . . . Shots Hit Robots 279 | . 79 4 14 1 . . 76 87 12 1 5 . . Core Hits 159 | . 31 3 7 3 . 1 32 54 4 1 23 . . Critical Kills 1 | . 1 . . . . . . . . . . . . Critical Parts Destroyed 3 | . . . . . . . 1 2 . . . . . Critical Strikes 5 | . 1 . . . . . 1 2 . . 1 . . Destroy 4 | . 1 . . . . . 1 2 . . . . . Blast 1 | . . . . . . . . . . . 1 . . Melee Attacks . | . . . . . . . . . . . . . . Impact . | . . . . . . . . . . . . . . Slashing . | . . . . . . . . . . . . . . Piercing . | . . . . . . . . . . . . . . Sneak Attacks . | . . . . . . . . . . . . . . Combat Hostiles . | . . . . . . . . . . . . . . Follow-up Attacks . | . . . . . . . . . . . . . . Damage Inflicted 8039 | . 818 166 213 118 . 11 1310 2513 308 20 2562 . . Guns 4588 | . 818 59 213 . . . 1296 1898 284 20 . . . Cannons 222 | . . . . . . . . . . . 222 . . Explosions 3146 | . . 107 . 118 . . . 584 . . 2337 . . Melee . | . . . . . . . . . . . . . . Ramming 83 | . . . . . . 11 14 31 24 . 3 . . Kinetic 4483 | . 491 59 213 . . . 1296 1898 284 20 222 . . Thermal 2199 | . 285 . . . . . . 53 . . 1861 . . Explosive 1232 | . . 107 . 118 . . . 531 . . 476 . . Electromagnetic 42 | . 42 . . . . . . . . . . . . Impact . | . . . . . . . . . . . . . . Slashing . | . . . . . . . . . . . . . . Piercing . | . . . . . . . . . . . . . . Highest Corruption 8 | . . . . . . . . 1 1 1 8 8 8 Average Corruption 2 | . . . . . . . . 1 1 1 3 8 8 Corruption Purged . | . . . . . . . . . . . . . . Effects 13 | . . . . . . . . 1 2 1 6 2 1 Message Errors 1 | . . . . . . . . . . . 1 . . Matter Fused 1 | . . . . . . . . . . . 1 . . Heat Flow Errors 2 | . . . . . . . . . . . 2 . . Energy Discharges 4 | . . . . . . . . 1 1 1 1 . . Data Loss (minor) 3 | . . . . . . . . . 1 . . 1 1 Data Loss (major) 1 | . . . . . . . . . . . . 1 . Weapon Failures 1 | . . . . . . . . . . . 1 . . Overload Shots . | . . . . . . . . . . . . . . Overflow Damage 402 | . . 3 . . . . . 46 . . 353 . . Projectiles 3 | . . . . . . . . . . . 3 . . Explosions 399 | . . 3 . . . . . 46 . . 350 . . Melee . | . . . . . . . . . . . . . . Knockbacks 2 | . . . . . . . . . . . 2 . . Impact . | . . . . . . . . . . . . . . Kinetic 2 | . . . . . . . . . . . 2 . . Secondary . | . . . . . . . . . . . . . . Self-Inflicted Damage 184 | . . . . . . 5 . 87 . . 92 . . Shots 6 | . . . . . . . . 4 . . 2 . . Rammed 3 | . . . . . . 2 1 . . . . . . Targets Rammed 16 | . 1 . . . . 2 2 4 4 . 3 . . Kicked 13 | . 1 . . . . . 1 4 4 . 3 . . Crushed . | . . . . . . . . . . . . . . Highest Temperature 404 | . 404 10 10 . . . 20 59 2 . 169 . . Average Temperature 53 | . 95 4 4 . . . 6 16 2 . 42 . . Received Heat Transfer 2370 | . 426 51 66 . . . 558 813 183 . 273 . . Effects 1 | . 1 . . . . . . . . . . . . Shutdowns 1 | . 1 . . . . . . . . . . . . Siege Activations . | . . . . . . . . . . . . . . Robots Corrupted . | . . . . . . . . . . . . . . Combat Hostiles . | . . . . . . . . . . . . . . Parts Fried . | . . . . . . . . . . . . . . Impact Corruptions . | . . . . . . . . . . . . . . Robots Melted . | . . . . . . . . . . . . . . Combat Hostiles . | . . . . . . . . . . . . . . Parts Melted 4 | . 1 . . . . . . . . . 3 . . Heat Transferred 2141 | . 691 . . . . . . 50 . . 1400 . . Parts Sabotaged . | . . . . . . . . . . . . . . Parts Stolen . | . . . . . . . . . . . . . . Parts Stripped . | . . . . . . . . . . . . . . Power Chain Reactions . | . . . . . . . . . . . . . . Missiles Intercepted . | . . . . . . . . . . . . . . Alert | -11 -10 -10 -9 -9 -9 -8 -8 -7 -7 -7 -5 -5 -5 ------- Run | Scr Mat Min Mat Min Exi Min Mat Fac Sto Rec Fac Was Fac Peak Influence 1891 | . 215 132 206 142 . . 357 357 207 109 1891 636 445 Initial 945 | . . 67 51 79 . . . 100 154 57 945 591 445 Average 233 | . 78 104 120 114 . . 146 151 164 81 1460 608 445 Maximum Alert Level 5 | . 1 . 1 . . . 1 1 1 . 5 2 2 Low Security (%) 72 | . 91 100 96 100 . 100 62 60 98 100 . . . Level 1 17 | . 8 . 3 . . . 37 39 1 . . . . Level 2 1 | . . . . . . . . . . . . 100 100 Level 3 . | . . . . . . . . . . . 11 . . Level 4 4 | . . . . . . . . . . . 59 . . Level 5 2 | . . . . . . . . . . . 29 . . High Security . | . . . . . . . . . . . . . . Max Security . | . . . . . . . . . . . . . . Squads Dispatched 22 | . 3 1 1 . . . 5 7 1 . 4 . . Investigation 12 | . 3 1 1 . . . 2 4 . . 1 . . Extermination 2 | . . . . . . . . 2 . . . . . Reinforcement 7 | . . . . . . . 3 1 1 . 2 . . Assault 1 | . . . . . . . . . . . 1 . . Garrison . | . . . . . . . . . . . . . . Intercept . | . . . . . . . . . . . . . . Construction Impeded 1 | . . . . . . . . . 1 . . . . Haulers Reinforced . | . . . . . . . . . . . . . . Active Scanning Responses . | . . . . . . . . . . . . . . Cargo Convoy Interrupts . | . . . . . . . . . . . . . . Stealth | -11 -10 -10 -9 -9 -9 -8 -8 -7 -7 -7 -5 -5 -5 --------- Run | Scr Mat Min Mat Min Exi Min Mat Fac Sto Rec Fac Was Fac Distress Signals 6 | . 2 . 1 . . . 2 1 . . . . . Communications Jammed . | . . . . . . . . . . . . . . Distress Signals . | . . . . . . . . . . . . . . Times Spotted 163 | . 29 14 10 2 . . 25 40 5 12 15 6 5 Peak Tracking Total 18 | . 5 18 5 2 . . 6 6 5 7 7 6 4 Tactical Retreats 6 | . . 2 1 . . . 1 . . . 2 . . Traps | -11 -10 -10 -9 -9 -9 -8 -8 -7 -7 -7 -5 -5 -5 ------- Run | Scr Mat Min Mat Min Exi Min Mat Fac Sto Rec Fac Was Fac Traps Triggered 11 | . . . 1 . . . . 4 4 . 2 . . Indirectly . | . . . . . . . . . . . . . . Trap Hack Attempts . | . . . . . . . . . . . . . . Triggered . | . . . . . . . . . . . . . . Disarmed 3 | . 3 . . . . . . . . . . . . Reprogrammed . | . . . . . . . . . . . . . . Reused . | . . . . . . . . . . . . . . Traps Extracted . | . . . . . . . . . . . . . . Installed . | . . . . . . . . . . . . . . Triggered . | . . . . . . . . . . . . . . Machines | -11 -10 -10 -9 -9 -9 -8 -8 -7 -7 -7 -5 -5 -5 ---------- Run | Scr Mat Min Mat Min Exi Min Mat Fac Sto Rec Fac Was Fac Machines Disabled 39 | . 1 . . . . . . 11 1 . 26 . . Max in Single Turn 17 | . 1 . . . . . . 5 1 . 17 . . Garrison Access 2 | . . . . . . . 1 . 1 . . . . Machines Sabotaged 1 | . 1 . . . . . . . . . . . . Garrisons Compromised . | . . . . . . . . . . . . . . Overloaded Fab Kills . | . . . . . . . . . . . . . . Fab Network Shutdowns . | . . . . . . . . . . . . . . Hacking | -11 -10 -10 -9 -9 -9 -8 -8 -7 -7 -7 -5 -5 -5 --------- Run | Scr Mat Min Mat Min Exi Min Mat Fac Sto Rec Fac Was Fac Machines Accessed 36 | . 11 1 2 . 1 . 6 9 1 2 2 . 1 Terminals 25 | . 8 . 2 . . . 4 7 . 1 2 . 1 Fabricators . | . . . . . . . . . . . . . . Repair Stations 2 | . 1 . . . . . . 1 . . . . . Recycling Units 5 | . 2 . . . . . 1 1 . 1 . . . Scanalyzers . | . . . . . . . . . . . . . . Garrison Access 2 | . . . . . . . 1 . 1 . . . . Total Hacks 94 | . 32 1 6 . 1 . 17 27 1 2 6 . 1 Successful 54 | . 23 1 2 . 1 . 8 16 1 . 2 . . Failed 40 | . 9 . 4 . . . 9 11 . 2 4 . 1 Catastrophic 5 | . 1 . . . . . . 2 . 1 . . 1 Database Lockouts . | . . . . . . . . . . . . . . Manual 78 | . 27 . 6 . . . 14 22 1 2 5 . 1 Terminals 75 | . 26 . 6 . . . 12 23 . 1 6 . 1 Fabricators . | . . . . . . . . . . . . . . Repair Stations 7 | . 4 . . . . . . 3 . . . . . Recycling Units 5 | . 2 . . . . . 1 1 . 1 . . . Scanalyzers . | . . . . . . . . . . . . . . Garrison Access 5 | . . . . . . . 4 . 1 . . . . Terminal Hacks 18 | . 8 1 1 . 1 . 2 4 . . 1 . . Record 2 | . . . . . 1 . . 1 . . . . . Open Door 1 | . . 1 . . . . . . . . . . . Level Access Points 1 | . . . . . . . 1 . . . . . . Branch Access Points 3 | . 1 . 1 . . . 1 . . . . . . Terminal Index 1 | . 1 . . . . . . . . . . . . Alert Level 1 | . . . . . . . . . . . 1 . . Unreport Threat 4 | . 2 . . . . . . 2 . . . . . Locate Traps 1 | . . . . . . . . 1 . . . . . Disarm Traps 1 | . 1 . . . . . . . . . . . . Registered Components 2 | . 2 . . . . . . . . . . . . Zone Layout 1 | . 1 . . . . . . . . . . . . Fabricator Hacks . | . . . . . . . . . . . . . . Repair Station Hacks 6 | . 4 . . . . . . 2 . . . . . Scan Component 3 | . 2 . . . . . . 1 . . . . . Repair 3 | . 2 . . . . . . 1 . . . . . Recycling Unit Hacks . | . . . . . . . . . . . . . . Scanalyzer . | . . . . . . . . . . . . . . Garrison Access Hacks 2 | . . . . . . . 1 . 1 . . . . Seal Access 2 | . . . . . . . 1 . 1 . . . . Unauthorized Hacks 28 | . 11 . 1 . . . 5 10 . . 1 . . Terminals 24 | . 9 . 1 . . . 4 9 . . 1 . . Track 4 | . . . . . . . . 4 . . . . . Botnet 18 | . 8 . 1 . . . 4 5 . . . . . Detonate 1 | . . . . . . . . . . . 1 . . Sabotage 1 | . 1 . . . . . . . . . . . . Fabricators . | . . . . . . . . . . . . . . Repair Stations . | . . . . . . . . . . . . . . Recycling Units 4 | . 2 . . . . . 1 1 . . . . . Tunnel 4 | . 2 . . . . . 1 1 . . . . . Scanalyzers . | . . . . . . . . . . . . . . Garrison Access . | . . . . . . . . . . . . . . Data Cores Recovered . | . . . . . . . . . . . . . . Used . | . . . . . . . . . . . . . . Hacking Detections 26 | . 8 . 2 . . . 4 8 . 1 2 . 1 Full Trace Events 4 | . . . . . . . 2 1 . . 1 . . Feedback Events . | . . . . . . . . . . . . . . Feedback Blocked . | . . . . . . . . . . . . . . Robot Schematics Acquired . | . . . . . . . . . . . . . . Robots Built . | . . . . . . . . . . . . . . Matter . | . . . . . . . . . . . . . . Time . | . . . . . . . . . . . . . . Total Robot Build Rating . | . . . . . . . . . . . . . . Part Schematics Acquired . | . . . . . . . . . . . . . . Parts Built . | . . . . . . . . . . . . . . Matter . | . . . . . . . . . . . . . . Time . | . . . . . . . . . . . . . . Total Part Build Rating . | . . . . . . . . . . . . . . Parts Repaired 3 | . 2 . . . . . . 1 . . . . . Time 102 | . 64 . . . . . . 38 . . . . . Parts Recycled . | . . . . . . . . . . . . . . Recycled Matter . | . . . . . . . . . . . . . . Retrieved Matter . | . . . . . . . . . . . . . . Retrieved Components . | . . . . . . . . . . . . . . Parts Scanalyzed . | . . . . . . . . . . . . . . Part Schematics Acquired . | . . . . . . . . . . . . . . Parts Damaged . | . . . . . . . . . . . . . . Bothacking | -11 -10 -10 -9 -9 -9 -8 -8 -7 -7 -7 -5 -5 -5 ------------ Run | Scr Mat Min Mat Min Exi Min Mat Fac Sto Rec Fac Was Fac Used RIF Installer . | . . . . . . . . . . . . . . Robots Hacked . | . . . . . . . . . . . . . . Non-combat . | . . . . . . . . . . . . . . Combat . | . . . . . . . . . . . . . . Robot Hacks Applied . | . . . . . . . . . . . . . . Relay Couplers Released . | . . . . . . . . . . . . . . Robots Rewired . | . . . . . . . . . . . . . . Allies Hacked . | . . . . . . . . . . . . . . Hacks Repelled . | . . . . . . . . . . . . . . Allies | -11 -10 -10 -9 -9 -9 -8 -8 -7 -7 -7 -5 -5 -5 -------- Run | Scr Mat Min Mat Min Exi Min Mat Fac Sto Rec Fac Was Fac Total Allies 3 | . . . . 3 . . . . . . . . . Largest Group 3 | . . . . 3 3 3 3 . . . . . . Highest-Rated Group 40 | . . . . 40 40 40 40 . . . . . . Highest-Rated Ally 16 | . . . . 16 16 16 16 . . . . . . Total Orders . | . . . . . . . . . . . . . . Ally Attacks 9 | . . . . . . . 9 . . . . . . Total Damage 48 | . . . . . . . 48 . . . . . . Kills . | . . . . . . . . . . . . . . Allies Corrupted . | . . . . . . . . . . . . . . Allies Melted . | . . . . . . . . . . . . . . Intel | -11 -10 -10 -9 -9 -9 -8 -8 -7 -7 -7 -5 -5 -5 ------- Run | Scr Mat Min Mat Min Exi Min Mat Fac Sto Rec Fac Was Fac Robot Analysis Total . | . . . . . . . . . . . . . . Derelict Logs Recovered 3 | . . 1 . 2 . . . . . . . . . Drone Launches . | . . . . . . . . . . . . . . Drone Recoveries . | . . . . . . . . . . . . . . Exploration | -11 -10 -10 -9 -9 -9 -8 -8 -7 -7 -7 -5 -5 -5 ------------- Run | Scr Mat Min Mat Min Exi Min Mat Fac Sto Rec Fac Was Fac Turns Passed 5399 | . 1043 245 283 334 419 191 572 1386 244 187 400 52 43 Spaces Moved 4212 | 1 699 226 194 319 435 189 346 907 139 148 428 98 83 Core 467 | . . . . . . . . . 1 . 285 98 83 Treads . | . . . . . . . . . . . . . . Legs 1699 | 1 238 . . . . . 124 907 138 148 143 . . Wheels 2046 | . 461 226 194 319 435 189 222 . . . . . . Hover . | . . . . . . . . . . . . . . Flight . | . . . . . . . . . . . . . . Fastest Speed 50 | 120 95 95 95 95 95 95 85 120 120 120 50 50 50 Average Speed 101 | 120 104 95 95 95 95 95 102 120 125 120 80 50 50 Slowest Speed 360 | 120 120 125 125 95 95 95 200 200 350 120 360 50 50 Overloaded Moves . | . . . . . . . . . . . . . . Propulsion Burnouts . | . . . . . . . . . . . . . . Robots Hopped . | . . . . . . . . . . . . . . Cave-ins Triggered . | . . . . . . . . . . . . . . Exploration Rate (%) 43 | 2 79 51 24 82 89 45 30 25 34 51 20 73 3 Regions Visited 13 Branch Regions 6 Pre-discovered Areas 5 | . 2 . . 1 . . 1 1 . . . . . Known Exits Taken 9 | . 1 1 1 1 1 1 1 1 1 . . . . Unknown Exits Taken 2 | 1 . . . . . . . . . 1 . . . Scrap Searched 2 | . . . . 2 . . . . . . . . . Spaces Dug . | . . . . . . . . . . . . . . Terrain Destroyed 190 | . . 15 . 7 . . . 96 2 . 70 . . Melee . | . . . . . . . . . . . . . . Projectile 4 | . . . . . . . . . 2 . 2 . . AOE 186 | . . 15 . 7 . . . 96 . . 68 . . Terrain Rammed . | . . . . . . . . . . . . . . Walls Destroyed . | . . . . . . . . . . . . . . Machines Disabled . | . . . . . . . . . . . . . . Actions | -11 -10 -10 -9 -9 -9 -8 -8 -7 -7 -7 -5 -5 -5 --------- Run | Scr Mat Min Mat Min Exi Min Mat Fac Sto Rec Fac Was Fac Total 4975 | . 918 248 273 345 440 200 474 1089 184 153 467 100 84 Wait 272 | . 89 7 64 19 5 10 30 20 12 . 12 3 1 Move 4201 | . 698 225 193 318 434 188 346 906 138 147 428 97 83 Hop . | . . . . . . . . . . . . . . Pick Up 90 | . 26 3 2 1 1 . 15 32 5 1 4 . . Fast Attach 27 | . 8 . . 1 . . 4 7 7 . . . . Attach 43 | . 1 1 1 2 . . 12 12 6 3 5 . . Detach 6 | . 1 . . . . . 1 1 . . 3 . . Swap 38 | . 9 1 2 3 . . 8 14 . . 1 . . Drop 62 | . 22 2 1 . . . 8 24 1 . 4 . . Fire 221 | . 63 9 10 1 . . 49 69 11 2 7 . . Melee . | . . . . . . . . . . . . . . Ram 2 | . . . . . . 2 . . . . . . . Kick 13 | . 1 . . . . . 1 4 4 . 3 . . Crush . | . . . . . . . . . . . . . . Escape Stasis . | . . . . . . . . . . . . . . Rewire . | . . . . . . . . . . . . . . Trap . | . . . . . . . . . . . . . . Miscellaneous . | . . . . . . . . . . . . . . Route ------- -11/Scrapyard -10/Materials (discovered 2 exits: *Mat / *Min) -10/Mines -9/Materials (discovered 2 exits: *Min x2) -9/Mines (discovered 2 exits: *Mat / *Exi) -9/Exiles (discovered 2 exits: *Min x2) -8/Mines -8/Materials (discovered 3 exits: *Fac x3) -7/Factory -7/Storage -7/Recycling -5/Factory -5/Waste -5/Factory History --------- Turn | Location | Event 1 | -11/Scrapyard | Discovered new exit (range 0) 1 | -11/Scrapyard | Entered Materials 101 | -10/Materials | Identified exit to Mines 254 | -10/Materials | Lost 3 parts (1p2w) 308 | -10/Materials | Build established: Mutant 378 | -10/Materials | Repaired Lgt. Nuclear Core 411 | -10/Materials | Repaired Lgt. Assault Rifle 642 | -10/Materials | Discovered new exit (range 5) 909 | -10/Materials | Core integrity fell below 50% 1044 | -10/Materials | Entered Mines 1101 | -10/Mines | Assembled infested the area 1106 | -10/Mines | Assisted by a Guerilla fighting off Assembled 1152 | -10/Mines | Met a Derelict shopkeep closing up shop 1273 | -10/Mines | Identified exit to Materials 1289 | -10/Mines | Entered Materials 1289 | -9/Materials | Evolved 2 slots: Utility x2 1446 | -9/Materials | Identified exit to Mines 1572 | -9/Materials | Entered Mines 1615 | -9/Mines | Discovered new exit (range 14) 1636 | -9/Mines | Assisted by bots powering up and referring to "LRC-V3" 1710 | -9/Mines | Learned location of Zion (-7) 1755 | -9/Mines | Found a damaged Exp. Sensor Array with a note attached 1757 | -9/Mines | Found Prototype Device 1757 | -9/Mines | Identified Exp. Sensor Array 1892 | -9/Mines | Deemed a non-threat by the Exiles lab entrance 1892 | -9/Mines | Discovered new exit (range 5) 1902 | -9/Mines | Identified exit to Exiles 1906 | -9/Mines | Entered Exiles 1906 | -9/Exiles | Found Exiles lab abandoned 1906 | -9/Exiles | Accompanied by 3 allies 1919 | -9/Exiles | Discovered new exit (range 15) 2257 | -9/Exiles | Discovered new exit (range 12) 2319 | -9/Exiles | Identified exit to Mines 2325 | -9/Exiles | Entered Mines 2325 | -8/Mines | Accompanied by 3 allies 2502 | -8/Mines | Discovered new exit (range 10) 2508 | -8/Mines | Identified exit to Materials 2516 | -8/Mines | Entered Materials 2516 | -8/Materials | Accompanied by 3 allies 2516 | -8/Materials | Evolved 2 slots: Propulsion x2 2862 | -8/Materials | Lost 7 parts (1p3n2u1w) 3067 | -8/Materials | Identified exit to Factory 3088 | -8/Materials | Entered Factory 3088 | -7/Factory | Evolved 2 slots: Utility x2 3114 | -7/Factory | Build established: Scavenger-Mutant 3118 | -7/Factory | Lost 4 parts (2n2w) 3640 | -7/Factory | Repaired Carbon-fiber Leg? 4275 | -7/Factory | Build established: Hacker-Mutant 4420 | -7/Factory | Discovered new exit (range 13) 4471 | -7/Factory | Identified exit to Storage 4474 | -7/Factory | Entered Storage 4475 | -7/Storage | Identified exit to Recycling 4494 | -7/Storage | Lost 6 parts (3n3u) 4704 | -7/Storage | Core integrity fell below 50% 4715 | -7/Storage | Used back door to open Recycling access 4718 | -7/Storage | Entered Recycling 4721 | -7/Recycling | Spotter reported a threat 4735 | -7/Recycling | Lost 6 parts (1p3n1u1w) 4748 | -7/Recycling | Spotter reported a threat 4792 | -7/Recycling | Spotter reported a threat 4793 | -7/Recycling | Spotter reported a threat 4793 | -7/Recycling | Spotter reported a threat 4794 | -7/Recycling | Spotter reported a threat 4800 | -7/Recycling | Spotter reported a threat 4801 | -7/Recycling | Spotter reported a threat 4801 | -7/Recycling | Spotter reported a threat 4846 | -7/Recycling | Spotter reported a threat 4847 | -7/Recycling | Spotter reported a threat 4854 | -7/Recycling | Spotter reported a threat 4895 | -7/Recycling | Discovered new exit (range 9) 4903 | -7/Recycling | Spotter reported a threat 4905 | -7/Recycling | Entered Factory 4905 | -5/Factory | Evolved 4 slots: Power x1, Utility x3 4991 | -5/Factory | Build established: Mutant 5205 | -5/Factory | First assault squad dispatched 5242 | -5/Factory | Core integrity fell below 50% 5292 | -5/Factory | Core integrity fell below 20% 5305 | -5/Factory | Sucked down chute 5305 | -5/Factory | Entered Waste 5317 | -5/Waste | Spotted C-40 Crusher 5327 | -5/Waste | Spotted C-40 Crusher 5332 | -5/Waste | Spotted C-40 Crusher 5338 | -5/Waste | Spotted C-40 Crusher 5343 | -5/Waste | Spotted C-40 Crusher 5348 | -5/Waste | Spotted C-40 Crusher 5350 | -5/Waste | Discovered new exit (range 14) 5357 | -5/Waste | Entered Factory 5400 | -5/Factory | Destroyed by S-27 Virus with Autogun Last Messages --------------- 05247_ K-01 Serf collects debris. 05248_ U-05 Engineer lays Concrete. 05248_ K-01 Serf collects debris. 05250_ U-05 Engineer lays Concrete. 05250_ Imp. Transmission Jammer destroyed. 05251_ K-01 Serf collects debris. 05258_ X>K8SF2SYODVLEKFB6HTOONY3>=ZPV 05305_ Triggered Chute Trap. 05305_ A hatch slides open and sucks a vortex of air into the floor. LOCATION=UNKNOWN GOAL=ESCAPE 05310_ System corrupted: Component data lost. 05329_ System corrupted: Substantial component data lost. 05350_ EXIT=FOUND LOCATION=UNKNOWN GOAL=ESCAPE 05369_ Connecting with Terminal... 05369_ Current location identified: Factory 05380_ S-27 Virus destroyed. 05386_ System corrupted: Component data lost. Map ----- +----------------------------------------------------+ | ?????????????????????????????????????????????????? | | ?????????????????????????????????????????????????? | | ?????????????????????????????????????????????????? | | ?????????????????????????????????????????????????? | | ?????????????????????????????????????????????????? | | ?????????????????????????????????????????????????? | | ?????????????????????????????????????????????????? | | ?????????????????????????????????????????????????? | | ?????????????????????????????????????????????????? | | ?????????????????????????????????????????????????? | | ?????????????????????????????????????????????????? | | ?????????????????????????????????????????????????? | | ?????????????????????????????????????????????????? | | ?????????????????????????????????????????????????? | | ?????????????????????????????????????????????????? | | ?????????????????????????????????????????????????? | | ?????????????????????????????????????????????????? | | ?????????????###############?????????????????????? | | ???????????? #??????##############?? | | ???????????? #??????# #?? | | ???????????? #??????# #?? | | ??????????? #??????# """"" #?? | | ??????????? u #??????# """"" #?? | | ?????????? #??????# """ #?? | | ?????????? ######## #?? | | ?????????? @ # """"" #?? | | ?????????? # """"" | #?? | | ?????????? # """ #?? | | ??????????? g # #?? | | ??????????? A t =% s # ] #?? | | ????????????######+########## st# #?? | | ????????????????????????????# #####/#########? | | ????????????????????????????# s #? | | ????????????????????????????# #? | | ????????????????????????????# #? | | ????????????????????????????# #? | | ????????????????????????????# #? | | ??????????????????????????######+########## #? | | ??????????????????????????# #??# #? | | ??????????????????????????# "" /[[ #??# #? | | ??????????????????????????# "" /[[ ! #??# #? | | ??????????????????????????# "T [[ #??# #? | | ??????????????????????????# "" [ #??# #? | | ??????????????????????????# "" #??# #? | | ??????????????????????????# #??# #? | | ??????????????????????????# #??# #? | | ??????????????????????????# """ """ #??#######? | | ??????????????????????????# """ """ #?????????? | | ??????????????????????????# """ """ #?????????? | | ??????????????????????????# ?? #?????????? | +----------------------------------------------------+ Best States ------------- Heat Dissipation 40 Coolant Potential 65 Energy Generation 15 Energy Capacity 275 Matter Stores 300 Matter Capacity 300 Sight Range 20 Robot Scan Range 20 Terrain Scan Density 10 Jamming Range 12 Armor Coverage 150 Core Shielding 20 Propulsion Shielding 66 Reclamation Efficiency 10 Evasion (%) 58 Targeting Accuracy 5 Core Analysis 6 Kinecelleration 30 Offensive Hacking 10 Defensive Hacking 10 Item Schematics ----------------- None Robot Schematics ------------------ None Fabricated ------------ Nothing Alien Tech Used ----------------- None Achievements -------------- \\IAMDERELICT Challenges ------------ None Game ------ Seed AbsorptionHelicalMatter Manual? 0 Play Time 01:09:00 Cumulative 62.7 hours Start 2021.08.11 @ 10:07:39 End 2021.08.11 @ 12:29:36 Sessions 3 Manual Loads 0 Difficulty Rogue Special Mode None Game No. 76 Rogue 76 Adventurer 0 Explorer 0 Win Type - Total 0 Types 0/0/0/0/0/0/0/0/0 Lore% 49 Gallery% 44 Achievement% 37 Wizard Run 0 Options --------- ASCII 1 Keyboard 0 Movement Vi Keybinds 0 Fullscreen 2 Font 18/SmallcapsGlow Map View 76x50 Tactical HUD 1 Map Filters NONE Filters NONE Steam 1 RUN: a5a6fbdb-9934-4513-bf9e-4cf1b2475ccf